[Event "Titled Tuesday Blitz July 25 Late 2023"]
[White "kripri"]
[Black "Bilan, Danila"]
[BlackFideId "24161918"]
[WhiteElo "2338"]
[BlackElo "2522"]
[Result "1-0"]
[Round "4"]
[TimeControl "180+2"]
[Date "2023.07.25"]
[WhiteClock "0:00:09"]
[BlackClock "0:00:00"]
[Board "127"]

1. d4 {[%clk 0:03:00]}  d5 {[%clk 0:02:59]} 2. Bf4 {[%clk 0:03:00]}  Nf6 {[%clk 0:03:00]} 3. e3 {[%clk 0:03:00]}  c5 {[%clk 0:03:00]} 4. dxc5 {[%clk 0:02:58]}  Qa5+ {[%clk 0:02:59]} 5. Nc3 {[%clk 0:02:56]}  Qxc5 {[%clk 0:02:56]} 6. Nf3 {[%clk 0:02:56]}  Bg4 {[%clk 0:02:55]} 7. Be2 {[%clk 0:02:56]}  e6 {[%clk 0:02:55]} 8. O-O {[%clk 0:02:55]}  Be7 {[%clk 0:02:55]} 9. Rc1 {[%clk 0:02:53]}  O-O {[%clk 0:02:52]} 10. Na4 {[%clk 0:02:54]}  Qa5 {[%clk 0:02:46]} 11. c4 {[%clk 0:02:51]}  dxc4 {[%clk 0:02:28]} 12. Nc3 {[%clk 0:02:03]}  b5 {[%clk 0:02:18]} 13. Nd4 {[%clk 0:02:00]}  Bxe2 {[%clk 0:02:06]} 14. Qxe2 {[%clk 0:02:01]}  Nbd7 {[%clk 0:01:38]} 15. Nc6 {[%clk 0:01:55]}  Qb6 {[%clk 0:01:19]} 16. Nxe7+ {[%clk 0:01:56]}  Kh8 {[%clk 0:01:20]} 17. Rfd1 {[%clk 0:01:50]}  Rfe8 {[%clk 0:01:12]} 18. Bd6 {[%clk 0:01:35]}  Nc5 {[%clk 0:00:58]} 19. Bxc5 {[%clk 0:01:28]}  Qxc5 {[%clk 0:00:59]} 20. Qf3 {[%clk 0:01:17]}  Qxe7 {[%clk 0:00:50]} 21. Nxb5 {[%clk 0:01:12]}  Rab8 {[%clk 0:00:47]} 22. Nd6 {[%clk 0:01:09]}  Red8 {[%clk 0:00:47]} 23. Nxc4 {[%clk 0:01:09]}  h6 {[%clk 0:00:40]} 24. h3 {[%clk 0:01:08]}  Rd5 {[%clk 0:00:25]} 25. b3 {[%clk 0:01:01]}  Rbd8 {[%clk 0:00:22]} 26. Rxd5 {[%clk 0:00:57]}  Nxd5 {[%clk 0:00:20]} 27. Ne5 {[%clk 0:00:56]}  Kg8 {[%clk 0:00:15]} 28. Nc6 {[%clk 0:00:56]}  Qa3 {[%clk 0:00:15]} 29. Qd1 {[%clk 0:00:47]}  Rd6 {[%clk 0:00:07]} 30. Qc2 {[%clk 0:00:41]}  g6 {[%clk 0:00:04]} 31. Ne5 {[%clk 0:00:38]}  Rd8 {[%clk 0:00:02]} 32. Nxg6 {[%clk 0:00:24]}  fxg6 {[%clk 0:00:02]} 33. Qxg6+ {[%clk 0:00:24]}  Kf8 {[%clk 0:00:03]} 34. Rc4 {[%clk 0:00:11]}  Qe7 {[%clk 0:00:00]} 35. Qxh6+ {[%clk 0:00:09]} 1-0


[Site "https://www.chess.com"]

[Event "Titled Tuesday Blitz July 25 Late 2023"]
[White "Kujawski, Adam"]
[Black "Benedetti, Julio"]
[WhiteFideId "1100920"]
[BlackFideId "172545"]
[WhiteElo "2331"]
[BlackElo "2511"]
[Result "0-1"]
[Round "4"]
[TimeControl "180+2"]
[Date "2023.07.25"]
[WhiteClock "0:00:00"]
[BlackClock "0:00:28"]
[Board "129"]

1. e4 {[%clk 0:03:00]}  c5 {[%clk 0:02:58]} 2. Nf3 {[%clk 0:02:59]}  d6 {[%clk 0:02:58]} 3. d4 {[%clk 0:02:59]}  cxd4 {[%clk 0:02:59]} 4. Nxd4 {[%clk 0:03:00]}  Nf6 {[%clk 0:02:59]} 5. Nc3 {[%clk 0:03:00]}  a6 {[%clk 0:02:58]} 6. Bg5 {[%clk 0:03:00]}  e6 {[%clk 0:02:58]} 7. f4 {[%clk 0:03:00]}  h6 {[%clk 0:02:52]} 8. Bh4 {[%clk 0:02:59]}  Qb6 {[%clk 0:02:41]} 9. Qd3 {[%clk 0:02:58]}  Qxb2 {[%clk 0:02:31]} 10. Rb1 {[%clk 0:02:58]}  Qa3 {[%clk 0:02:32]} 11. f5 {[%clk 0:02:51]}  e5 {[%clk 0:02:21]} 12. Bxf6 {[%clk 0:02:28]}  gxf6 {[%clk 0:02:19]} 13. Nb3 {[%clk 0:02:11]}  Be7 {[%clk 0:01:59]} 14. Nd5 {[%clk 0:01:59]}  Bd8 {[%clk 0:01:57]} 15. Be2 {[%clk 0:01:40]}  Nc6 {[%clk 0:01:44]} 16. O-O {[%clk 0:01:16]}  Nb4 {[%clk 0:01:44]} 17. Nxb4 {[%clk 0:00:45]}  Qxb4 {[%clk 0:01:45]} 18. Kh1 {[%clk 0:00:43]}  Bd7 {[%clk 0:01:42]} 19. Rfd1 {[%clk 0:00:26]}  Be7 {[%clk 0:01:33]} 20. c4 {[%clk 0:00:23]}  Qa3 {[%clk 0:01:23]} 21. c5 {[%clk 0:00:20]}  Bb5 {[%clk 0:01:22]} 22. Qe3 {[%clk 0:00:16]}  dxc5 {[%clk 0:01:14]} 23. Bxb5+ {[%clk 0:00:10]}  axb5 {[%clk 0:01:14]} 24. Qd3 {[%clk 0:00:10]}  c4 {[%clk 0:01:06]} 25. Qd7+ {[%clk 0:00:09]}  Kf8 {[%clk 0:01:06]} 26. Qxb7 {[%clk 0:00:04]}  Kg7 {[%clk 0:01:03]} 27. Nd2 {[%clk 0:00:02]}  Rab8 {[%clk 0:00:59]} 28. Qd7 {[%clk 0:00:01]}  Rhd8 {[%clk 0:00:58]} 29. Qc6 {[%clk 0:00:01]}  Qxa2 {[%clk 0:00:51]} 30. Nf3 {[%clk 0:00:00]}  b4 {[%clk 0:00:28]} 0-1


[Site "https://www.chess.com"]

[Event "Titled Tuesday Blitz July 25 Late 2023"]
[White "Tikhonov, Viacheslav"]
[Black "jero888"]
[WhiteFideId "44196407"]
[WhiteElo "2505"]
[BlackElo "2331"]
[Result "1-0"]
[Round "4"]
[TimeControl "180+2"]
[Date "2023.07.25"]
[WhiteClock "0:00:24"]
[BlackClock "0:00:12"]
[Board "130"]

1. e4 {[%clk 0:03:00]}  c5 {[%clk 0:03:00]} 2. Nf3 {[%clk 0:03:00]}  d6 {[%clk 0:03:00]} 3. Nc3 {[%clk 0:02:58]}  Nf6 {[%clk 0:02:59]} 4. e5 {[%clk 0:02:59]}  dxe5 {[%clk 0:02:59]} 5. Nxe5 {[%clk 0:03:00]}  Nbd7 {[%clk 0:03:00]} 6. d4 {[%clk 0:03:00]}  e6 {[%clk 0:03:00]} 7. Bg5 {[%clk 0:02:56]}  Be7 {[%clk 0:02:59]} 8. Bb5 {[%clk 0:02:54]}  O-O {[%clk 0:02:58]} 9. O-O {[%clk 0:02:45]}  a6 {[%clk 0:02:52]} 10. Bxd7 {[%clk 0:02:42]}  Nxd7 {[%clk 0:02:32]} 11. Bxe7 {[%clk 0:02:37]}  Qxe7 {[%clk 0:02:30]} 12. Nxd7 {[%clk 0:02:37]}  Bxd7 {[%clk 0:02:31]} 13. dxc5 {[%clk 0:02:37]}  Rfd8 {[%clk 0:02:14]} 14. Qf3 {[%clk 0:02:18]}  Qxc5 {[%clk 0:02:08]} 15. Qxb7 {[%clk 0:02:13]}  Rab8 {[%clk 0:02:05]} 16. Qxa6 {[%clk 0:02:12]}  Rxb2 {[%clk 0:02:05]} 17. Qd3 {[%clk 0:02:02]}  Rbb8 {[%clk 0:01:57]} 18. Rfd1 {[%clk 0:01:48]}  h5 {[%clk 0:01:53]} 19. Ne4 {[%clk 0:01:45]}  Qc7 {[%clk 0:01:52]} 20. Ng5 {[%clk 0:01:38]}  g6 {[%clk 0:01:48]} 21. Ne4 {[%clk 0:01:26]}  Qe5 {[%clk 0:01:43]} 22. Qf3 {[%clk 0:01:10]}  Kg7 {[%clk 0:01:37]} 23. Qc3 {[%clk 0:00:59]}  Qxc3 {[%clk 0:01:26]} 24. Nxc3 {[%clk 0:00:59]}  Rdc8 {[%clk 0:01:05]} 25. Rxd7 {[%clk 0:00:58]}  Rxc3 {[%clk 0:01:05]} 26. Rd2 {[%clk 0:00:50]}  Rb2 {[%clk 0:01:02]} 27. a4 {[%clk 0:00:44]}  Ra3 {[%clk 0:01:01]} 28. Rdd1 {[%clk 0:00:44]}  Rba2 {[%clk 0:01:01]} 29. Rxa2 {[%clk 0:00:41]}  Rxa2 {[%clk 0:01:02]} 30. Rc1 {[%clk 0:00:40]}  Rxa4 {[%clk 0:01:02]} 31. Kf1 {[%clk 0:00:36]}  Kf6 {[%clk 0:01:00]} 32. Ke2 {[%clk 0:00:35]}  Ke5 {[%clk 0:01:00]} 33. Kd3 {[%clk 0:00:33]}  Rd4+ {[%clk 0:00:59]} 34. Ke3 {[%clk 0:00:33]}  Ra4 {[%clk 0:00:54]} 35. c3 {[%clk 0:00:32]}  g5 {[%clk 0:00:53]} 36. h3 {[%clk 0:00:29]}  f5 {[%clk 0:00:53]} 37. Kd3 {[%clk 0:00:27]}  h4 {[%clk 0:00:49]} 38. c4 {[%clk 0:00:23]}  Kd6 {[%clk 0:00:48]} 39. c5+ {[%clk 0:00:20]}  Kc6 {[%clk 0:00:46]} 40. Re1 {[%clk 0:00:21]}  Kxc5 {[%clk 0:00:41]} 41. Rxe6 {[%clk 0:00:21]}  Kd5 {[%clk 0:00:36]} 42. Rg6 {[%clk 0:00:20]}  Ra3+ {[%clk 0:00:32]} 43. Kd2 {[%clk 0:00:20]}  g4 {[%clk 0:00:33]} 44. hxg4 {[%clk 0:00:18]}  fxg4 {[%clk 0:00:34]} 45. Rxg4 {[%clk 0:00:18]}  h3 {[%clk 0:00:34]} 46. g3 {[%clk 0:00:16]}  Ra1 {[%clk 0:00:17]} 47. Rh4 {[%clk 0:00:16]}  Rh1 {[%clk 0:00:18]} 48. Ke3 {[%clk 0:00:16]}  Ke5 {[%clk 0:00:18]} 49. Kf3 {[%clk 0:00:17]}  Kf5 {[%clk 0:00:18]} 50. g4+ {[%clk 0:00:18]}  Kg5 {[%clk 0:00:18]} 51. Rh5+ {[%clk 0:00:18]}  Kg6 {[%clk 0:00:18]} 52. Kg3 {[%clk 0:00:18]}  Rg1+ {[%clk 0:00:15]} 53. Kxh3 {[%clk 0:00:18]}  Rh1+ {[%clk 0:00:15]} 54. Kg3 {[%clk 0:00:19]}  Ra1 {[%clk 0:00:14]} 55. f3 {[%clk 0:00:19]}  Ra3 {[%clk 0:00:13]} 56. Rf5 {[%clk 0:00:19]}  Ra6 {[%clk 0:00:12]} 57. Rf4 {[%clk 0:00:20]}  Ra1 {[%clk 0:00:12]} 58. Re4 {[%clk 0:00:21]}  Rg1+ {[%clk 0:00:12]} 59. Kf4 {[%clk 0:00:21]}  Rh1 {[%clk 0:00:13]} 60. Re6+ {[%clk 0:00:22]}  Kf7 {[%clk 0:00:13]} 61. Rb6 {[%clk 0:00:22]}  Rh8 {[%clk 0:00:13]} 62. Kg5 {[%clk 0:00:22]}  Ra8 {[%clk 0:00:14]} 63. Rb7+ {[%clk 0:00:21]}  Kg8 {[%clk 0:00:14]} 64. f4 {[%clk 0:00:22]}  Ra5+ {[%clk 0:00:15]} 65. f5 {[%clk 0:00:22]}  Ra6 {[%clk 0:00:15]} 66. f6 {[%clk 0:00:22]}  Ra1 {[%clk 0:00:14]} 67. Kg6 {[%clk 0:00:22]}  Ra8 {[%clk 0:00:14]} 68. g5 {[%clk 0:00:21]}  Rf8 {[%clk 0:00:14]} 69. Rg7+ {[%clk 0:00:22]}  Kh8 {[%clk 0:00:15]} 70. Rh7+ {[%clk 0:00:23]}  Kg8 {[%clk 0:00:15]} 71. f7+ {[%clk 0:00:24]}  Rxf7 {[%clk 0:00:12]} 72. Rxf7 {[%clk 0:00:24]} 1-0


[Site "https://www.chess.com"]

[Event "Titled Tuesday Blitz July 25 Late 2023"]
[White "JERO-8914"]
[Black "Korpics, Zsolt"]
[BlackFideId "705241"]
[WhiteElo "2503"]
[BlackElo "2331"]
[Result "0-1"]
[Round "4"]
[TimeControl "180+2"]
[Date "2023.07.25"]
[WhiteClock "0:00:16"]
[BlackClock "0:00:10"]
[Board "131"]

1. d4 {[%clk 0:02:58]}  Nf6 {[%clk 0:03:00]} 2. Nf3 {[%clk 0:02:57]}  e6 {[%clk 0:03:00]} 3. c4 {[%clk 0:02:54]}  b6 {[%clk 0:02:59]} 4. Nc3 {[%clk 0:02:55]}  Bb7 {[%clk 0:02:51]} 5. a3 {[%clk 0:02:55]}  d5 {[%clk 0:02:41]} 6. cxd5 {[%clk 0:02:54]}  Nxd5 {[%clk 0:02:41]} 7. e3 {[%clk 0:02:53]}  Be7 {[%clk 0:02:36]} 8. Bb5+ {[%clk 0:02:53]}  c6 {[%clk 0:02:25]} 9. Bd3 {[%clk 0:02:53]}  O-O {[%clk 0:02:25]} 10. O-O {[%clk 0:02:52]}  Nxc3 {[%clk 0:02:25]} 11. bxc3 {[%clk 0:02:53]}  c5 {[%clk 0:02:26]} 12. e4 {[%clk 0:02:37]}  Nc6 {[%clk 0:02:16]} 13. d5 {[%clk 0:02:33]}  exd5 {[%clk 0:02:04]} 14. exd5 {[%clk 0:02:34]}  Nb8 {[%clk 0:02:04]} 15. c4 {[%clk 0:02:34]}  Bf6 {[%clk 0:02:05]} 16. Ra2 {[%clk 0:02:33]}  Nd7 {[%clk 0:02:05]} 17. Bf4 {[%clk 0:02:28]}  b5 {[%clk 0:02:04]} 18. cxb5 {[%clk 0:02:06]}  Nb6 {[%clk 0:01:49]} 19. d6 {[%clk 0:02:05]}  Nd5 {[%clk 0:01:50]} 20. Bg3 {[%clk 0:02:03]}  Nc3 {[%clk 0:01:49]} 21. Qc2 {[%clk 0:01:55]}  Nxa2 {[%clk 0:01:47]} 22. Qxa2 {[%clk 0:01:56]}  Bxf3 {[%clk 0:01:40]} 23. gxf3 {[%clk 0:01:57]}  Bh4 {[%clk 0:01:38]} 24. Qd5 {[%clk 0:01:50]}  Bxg3 {[%clk 0:01:30]} 25. hxg3 {[%clk 0:01:51]}  Qf6 {[%clk 0:01:20]} 26. Bc4 {[%clk 0:01:39]}  h5 {[%clk 0:00:49]} 27. Rd1 {[%clk 0:01:31]}  h4 {[%clk 0:00:47]} 28. Kg2 {[%clk 0:01:23]}  Rfd8 {[%clk 0:00:34]} 29. d7 {[%clk 0:01:07]}  Qe7 {[%clk 0:00:22]} 30. Qf5 {[%clk 0:00:44]}  Rab8 {[%clk 0:00:19]} 31. a4 {[%clk 0:00:37]}  Rb6 {[%clk 0:00:19]} 32. a5 {[%clk 0:00:29]}  Rf6 {[%clk 0:00:17]} 33. Qe4 {[%clk 0:00:25]}  Rxd7 {[%clk 0:00:11]} 34. Qa8+ {[%clk 0:00:18]}  Kh7 {[%clk 0:00:11]} 35. Rh1 {[%clk 0:00:19]}  Rh6 {[%clk 0:00:05]} 36. Qe4+ {[%clk 0:00:16]}  Qxe4 {[%clk 0:00:05]} 37. fxe4 {[%clk 0:00:17]}  Rd4 {[%clk 0:00:05]} 38. Bd5 {[%clk 0:00:16]}  hxg3 {[%clk 0:00:06]} 39. Rxh6+ {[%clk 0:00:15]}  Kxh6 {[%clk 0:00:07]} 40. b6 {[%clk 0:00:16]}  axb6 {[%clk 0:00:06]} 41. axb6 {[%clk 0:00:17]}  Rb4 {[%clk 0:00:07]} 42. b7 {[%clk 0:00:16]}  c4 {[%clk 0:00:08]} 43. fxg3 {[%clk 0:00:16]}  c3 {[%clk 0:00:08]} 44. Kf3 {[%clk 0:00:15]}  c2 {[%clk 0:00:09]} 45. Kf4 {[%clk 0:00:16]}  c1=Q+ {[%clk 0:00:08]} 46. Ke5 {[%clk 0:00:16]}  Qg5+ {[%clk 0:00:09]} 47. Kd6 {[%clk 0:00:15]}  Qd8+ {[%clk 0:00:10]} 48. Kc5 {[%clk 0:00:16]}  Qb6# {[%clk 0:00:10]} 0-1


[Site "https://www.chess.com"]

[Event "Titled Tuesday Blitz July 25 Late 2023"]
[White "Kukavica, Tony"]
[Black "Ordekalog"]
[WhiteFideId "2062542"]
[WhiteElo "2317"]
[BlackElo "2492"]
[Result "0-1"]
[Round "4"]
[TimeControl "180+2"]
[Date "2023.07.25"]
[WhiteClock "0:00:03"]
[BlackClock "0:00:31"]
[Board "135"]

1. Nf3 {[%clk 0:02:51]}  d5 {[%clk 0:02:58]} 2. d4 {[%clk 0:02:51]}  c5 {[%clk 0:02:58]} 3. e3 {[%clk 0:02:46]}  Nf6 {[%clk 0:02:56]} 4. a3 {[%clk 0:02:44]}  a6 {[%clk 0:02:52]} 5. dxc5 {[%clk 0:02:44]}  Bg4 {[%clk 0:02:45]} 6. b4 {[%clk 0:02:43]}  e5 {[%clk 0:02:44]} 7. Be2 {[%clk 0:02:42]}  a5 {[%clk 0:02:38]} 8. Bb2 {[%clk 0:02:40]}  axb4 {[%clk 0:02:38]} 9. axb4 {[%clk 0:02:40]}  Rxa1 {[%clk 0:02:37]} 10. Bxa1 {[%clk 0:02:39]}  Bxf3 {[%clk 0:02:36]} 11. Bxf3 {[%clk 0:02:37]}  Nc6 {[%clk 0:02:36]} 12. c3 {[%clk 0:02:29]}  e4 {[%clk 0:02:35]} 13. Be2 {[%clk 0:02:28]}  Be7 {[%clk 0:02:32]} 14. O-O {[%clk 0:02:20]}  Ne5 {[%clk 0:02:32]} 15. Qa4+ {[%clk 0:02:08]}  Nfd7 {[%clk 0:02:29]} 16. c4 {[%clk 0:01:58]}  Nxc4 {[%clk 0:02:27]} 17. Bxc4 {[%clk 0:01:54]}  dxc4 {[%clk 0:02:27]} 18. Rd1 {[%clk 0:01:54]}  Bf6 {[%clk 0:02:20]} 19. Bxf6 {[%clk 0:01:50]}  gxf6 {[%clk 0:02:21]} 20. Nc3 {[%clk 0:01:43]}  Ke7 {[%clk 0:02:04]} 21. Qb5 {[%clk 0:01:16]}  Qc8 {[%clk 0:01:56]} 22. Nd5+ {[%clk 0:01:12]}  Ke6 {[%clk 0:01:55]} 23. Nf4+ {[%clk 0:01:08]}  Ke7 {[%clk 0:01:53]} 24. Qxc4 {[%clk 0:00:47]}  Ne5 {[%clk 0:01:40]} 25. Qxe4 {[%clk 0:00:45]}  Rd8 {[%clk 0:01:36]} 26. Rxd8 {[%clk 0:00:33]}  Kxd8 {[%clk 0:01:33]} 27. Qxh7 {[%clk 0:00:24]}  Qg4 {[%clk 0:01:32]} 28. h3 {[%clk 0:00:17]}  Qd1+ {[%clk 0:01:30]} 29. Kh2 {[%clk 0:00:15]}  Qd2 {[%clk 0:01:28]} 30. Qh8+ {[%clk 0:00:14]}  Ke7 {[%clk 0:01:28]} 31. Qh4 {[%clk 0:00:13]}  Qb2 {[%clk 0:00:58]} 32. Nd5+ {[%clk 0:00:12]}  Ke6 {[%clk 0:00:58]} 33. Nf4+ {[%clk 0:00:08]}  Kf5 {[%clk 0:00:52]} 34. Qg3 {[%clk 0:00:05]}  Ke4 {[%clk 0:00:51]} 35. f3+ {[%clk 0:00:04]}  Kxe3 {[%clk 0:00:50]} 36. Nd5+ {[%clk 0:00:04]}  Kd4 {[%clk 0:00:49]} 37. Nxf6 {[%clk 0:00:04]}  Kd3 {[%clk 0:00:45]} 38. Ne4 {[%clk 0:00:03]}  Nc4 {[%clk 0:00:41]} 39. h4 {[%clk 0:00:02]}  Ne3 {[%clk 0:00:40]} 40. h5 {[%clk 0:00:02]}  Nf1+ {[%clk 0:00:40]} 41. Kh3 {[%clk 0:00:03]}  Nxg3 {[%clk 0:00:40]} 42. Kxg3 {[%clk 0:00:03]}  Qxb4 {[%clk 0:00:39]} 43. h6 {[%clk 0:00:03]}  Qd4 {[%clk 0:00:38]} 44. Ng5 {[%clk 0:00:03]}  Qxc5 {[%clk 0:00:35]} 45. f4 {[%clk 0:00:03]}  Qf5 {[%clk 0:00:35]} 46. h7 {[%clk 0:00:03]}  Qf6 {[%clk 0:00:35]} 47. Kg4 {[%clk 0:00:04]}  b5 {[%clk 0:00:33]} 48. Nxf7 {[%clk 0:00:03]}  Qg7+ {[%clk 0:00:32]} 49. Ng5 {[%clk 0:00:03]}  b4 {[%clk 0:00:33]} 50. f5 {[%clk 0:00:04]}  b3 {[%clk 0:00:33]} 51. f6 {[%clk 0:00:04]}  Qxf6 {[%clk 0:00:33]} 52. Kh5 {[%clk 0:00:04]}  b2 {[%clk 0:00:32]} 53. g4 {[%clk 0:00:04]}  b1=Q {[%clk 0:00:32]} 54. h8=Q {[%clk 0:00:03]}  Qh1+ {[%clk 0:00:31]} 55. Nh3 {[%clk 0:00:03]}  Qxh3# {[%clk 0:00:31]} 0-1


[Site "https://www.chess.com"]

[Event "Titled Tuesday Blitz July 25 Late 2023"]
[White "Alboredo, Julia"]
[Black "Wang, Alexander J"]
[WhiteFideId "2124807"]
[BlackFideId "30955270"]
[WhiteElo "2483"]
[BlackElo "2305"]
[Result "1-0"]
[Round "4"]
[TimeControl "180+2"]
[Date "2023.07.25"]
[WhiteClock "0:01:28"]
[BlackClock "0:01:46"]
[Board "138"]

1. e4 {[%clk 0:03:00]}  c5 {[%clk 0:02:59]} 2. Nf3 {[%clk 0:03:00]}  d6 {[%clk 0:02:59]} 3. d4 {[%clk 0:02:59]}  cxd4 {[%clk 0:03:00]} 4. Nxd4 {[%clk 0:02:58]}  Nf6 {[%clk 0:03:00]} 5. Nc3 {[%clk 0:02:58]}  g6 {[%clk 0:02:59]} 6. Be2 {[%clk 0:02:57]}  Bg7 {[%clk 0:02:59]} 7. O-O {[%clk 0:02:57]}  O-O {[%clk 0:02:59]} 8. Bg5 {[%clk 0:02:58]}  Nc6 {[%clk 0:02:59]} 9. Nb3 {[%clk 0:02:57]}  h6 {[%clk 0:02:58]} 10. Bh4 {[%clk 0:02:56]}  g5 {[%clk 0:02:56]} 11. Bg3 {[%clk 0:02:56]}  Be6 {[%clk 0:02:54]} 12. Re1 {[%clk 0:02:54]}  Nd7 {[%clk 0:02:51]} 13. Bf1 {[%clk 0:02:54]}  Nde5 {[%clk 0:02:48]} 14. Nd5 {[%clk 0:02:51]}  Bxd5 {[%clk 0:02:47]} 15. exd5 {[%clk 0:02:51]}  f5 {[%clk 0:02:46]} 16. dxc6 {[%clk 0:02:43]}  f4 {[%clk 0:02:40]} 17. cxb7 {[%clk 0:02:43]}  Rb8 {[%clk 0:02:40]} 18. Nd4 {[%clk 0:02:30]}  fxg3 {[%clk 0:02:38]} 19. hxg3 {[%clk 0:02:27]}  Qb6 {[%clk 0:02:36]} 20. Nf3 {[%clk 0:02:05]}  g4 {[%clk 0:02:29]} 21. Nd4 {[%clk 0:01:57]}  Nf3+ {[%clk 0:02:21]} 22. Nxf3 {[%clk 0:01:43]}  gxf3 {[%clk 0:02:16]} 23. gxf3 {[%clk 0:01:44]}  Qxb2 {[%clk 0:02:04]} 24. Rb1 {[%clk 0:01:39]}  Qxa2 {[%clk 0:02:02]} 25. Rb4 {[%clk 0:01:29]}  Qf7 {[%clk 0:02:01]} 26. Bc4 {[%clk 0:01:28]}  d5 {[%clk 0:01:46]} 27. Bxd5 {[%clk 0:01:28]} 1-0


[Site "https://www.chess.com"]

[Event "Titled Tuesday Blitz July 25 Late 2023"]
[White "Dinu, Dumitru-Daniel"]
[Black "Broca Jimenez, Fernando"]
[WhiteFideId "1208403"]
[BlackFideId "5104742"]
[WhiteElo "2469"]
[BlackElo "2282"]
[Result "1-0"]
[Round "4"]
[TimeControl "180+2"]
[Date "2023.07.25"]
[WhiteClock "0:00:19"]
[BlackClock "0:00:28"]
[Board "141"]

1. d4 {[%clk 0:03:00]}  g6 {[%clk 0:02:56]} 2. e4 {[%clk 0:03:00]}  Bg7 {[%clk 0:02:57]} 3. Nc3 {[%clk 0:02:59]}  d6 {[%clk 0:02:58]} 4. Bc4 {[%clk 0:02:59]}  Nf6 {[%clk 0:02:58]} 5. Qe2 {[%clk 0:02:59]}  O-O {[%clk 0:02:59]} 6. e5 {[%clk 0:02:59]}  dxe5 {[%clk 0:02:58]} 7. dxe5 {[%clk 0:03:00]}  Nfd7 {[%clk 0:02:55]} 8. Nf3 {[%clk 0:02:56]}  e6 {[%clk 0:02:53]} 9. Bg5 {[%clk 0:02:52]}  Qe8 {[%clk 0:02:49]} 10. O-O {[%clk 0:02:49]}  a6 {[%clk 0:02:45]} 11. a4 {[%clk 0:02:48]}  Nc6 {[%clk 0:02:32]} 12. Bf4 {[%clk 0:02:43]}  Nb6 {[%clk 0:02:24]} 13. Bb3 {[%clk 0:02:42]}  Bd7 {[%clk 0:02:15]} 14. Rad1 {[%clk 0:02:40]}  Na5 {[%clk 0:02:07]} 15. Rd2 {[%clk 0:02:26]}  Nxb3 {[%clk 0:02:04]} 16. cxb3 {[%clk 0:02:27]}  Bc6 {[%clk 0:02:01]} 17. Nd4 {[%clk 0:02:23]}  h6 {[%clk 0:01:54]} 18. Rc1 {[%clk 0:02:20]}  Rd8 {[%clk 0:01:49]} 19. a5 {[%clk 0:02:02]}  Nd5 {[%clk 0:01:38]} 20. Nxd5 {[%clk 0:02:01]}  Rxd5 {[%clk 0:01:27]} 21. Nxc6 {[%clk 0:01:57]}  bxc6 {[%clk 0:01:25]} 22. Rxd5 {[%clk 0:01:52]}  exd5 {[%clk 0:01:12]} 23. Qxa6 {[%clk 0:01:50]}  g5 {[%clk 0:01:13]} 24. Bg3 {[%clk 0:01:46]}  Bxe5 {[%clk 0:01:13]} 25. Bxe5 {[%clk 0:01:32]}  Qxe5 {[%clk 0:01:13]} 26. Qxc6 {[%clk 0:01:30]}  Qxb2 {[%clk 0:01:13]} 27. a6 {[%clk 0:01:26]}  Kg7 {[%clk 0:01:08]} 28. a7 {[%clk 0:01:16]}  d4 {[%clk 0:01:05]} 29. Rf1 {[%clk 0:00:53]}  Qa3 {[%clk 0:00:50]} 30. Qb7 {[%clk 0:00:49]}  c5 {[%clk 0:00:48]} 31. f4 {[%clk 0:00:42]}  d3 {[%clk 0:00:44]} 32. fxg5 {[%clk 0:00:39]}  hxg5 {[%clk 0:00:45]} 33. a8=Q {[%clk 0:00:28]}  Qxa8 {[%clk 0:00:43]} 34. Rxf7+ {[%clk 0:00:25]}  Rxf7 {[%clk 0:00:36]} 35. Qxa8 {[%clk 0:00:25]}  Rd7 {[%clk 0:00:34]} 36. Qc6 {[%clk 0:00:19]}  Rd4 {[%clk 0:00:33]} 37. Qxc5 {[%clk 0:00:18]}  Rd7 {[%clk 0:00:33]} 38. Qxg5+ {[%clk 0:00:18]}  Kf7 {[%clk 0:00:33]} 39. Qd2 {[%clk 0:00:18]}  Ke6 {[%clk 0:00:32]} 40. Kf2 {[%clk 0:00:18]}  Ke5 {[%clk 0:00:33]} 41. Ke3 {[%clk 0:00:18]}  Ke6 {[%clk 0:00:32]} 42. Qxd3 {[%clk 0:00:18]}  Rxd3+ {[%clk 0:00:28]} 43. Kxd3 {[%clk 0:00:19]} 1-0


[Site "https://www.chess.com"]